fUST/lending_fUST_20260117
["ID","MTS","AMOUNT","RATE_DAILY","PERIOD"]
[402276889,1768641079544,-500.0,0.00018082,3]
[402276891,1768641079553,-2016.32,0.00018082,3]
[402276893,1768641079562,-500.0,0.00018082,3]
[402276895,1768641079572,-500.0,0.00018082,3]
[402276897,1768641079581,-618.83,0.00018082,3]
[402276899,1768641079591,-500.0,0.00018082,3]
[402276901,1768641079600,-360.7676184,0.00018082,3]
[402276903,1768641079610,-523.78,0.00018082,3]
[402276905,1768641079619,-500.0,0.00018082,3]
[402276907,1768641079627,-1542.76,0.00018082,3]
[402276909,1768641079636,-500.0,0.00018082,3]
[402276911,1768641079646,-500.0,0.00018082,3]
[402276913,1768641079655,-500.0,0.00018082,3]
[402276915,1768641079664,-500.0,0.00018082,3]
[402276917,1768641079673,-500.0,0.00018082,3]
[402276919,1768641079682,-500.0,0.00018082,3]
[402276921,1768641079691,-500.0,0.00018082,3]
[402276923,1768641079700,-580.8,0.00018082,3]
[402276924,1768641079708,-500.0,0.00018082,3]
[402276926,1768641079717,-942.19,0.00018082,3]
[402276928,1768641079727,-2703.42,0.00018082,3]
[402276930,1768641079736,-500.0,0.00018082,3]
[402276932,1768641079745,-799.26,0.00018082,3]
[402276934,1768641079754,-500.0,0.00018082,3]
[402276936,1768641079763,-500.0,0.00018082,3]
[402276938,1768641079773,-500.0,0.00018082,3]
[402276940,1768641079782,-500.0,0.00018082,3]
[402276942,1768641079791,-1577.53,0.00018082,3]
[402276944,1768641079800,-1436.74,0.00018082,3]
[402276946,1768641079809,-500.0,0.00018082,3]
[402276948,1768641079818,-500.0,0.00018082,3]
[402276950,1768641079827,-500.0,0.00018082,3]
[402276952,1768641079839,-1613.51,0.00018082,3]
[402276954,1768641079848,-500.0,0.00018082,3]
[402276956,1768641079857,-500.0,0.00018082,3]
[402276958,1768641079867,-500.0,0.00018082,3]
[402276960,1768641079876,-618.91,0.00018082,3]
[402276962,1768641079885,-500.0,0.00018082,3]
[402276964,1768641079894,-1482.88,0.00018082,3]
[402276966,1768641079903,-1911.71,0.00018082,3]
[402276968,1768641079912,-2136.32,0.00018082,3]
[402276970,1768641079922,-500.0,0.00018082,3]
[402276972,1768641079931,-500.0,0.00018082,3]
[402276974,1768641079940,-500.0,0.00018082,3]
[402276976,1768641079949,-645.08,0.00018082,3]
[402276978,1768641079959,-777.63,0.00018082,3]
[402276980,1768641079968,-500.0,0.00018082,3]
[402276982,1768641079977,-500.0,0.00018082,3]
[402276984,1768641079986,-686.85,0.00018082,3]
[402276986,1768641079995,-500.0,0.00018082,3]
[402276988,1768641080005,-847.18,0.00018082,3]
[402276990,1768641080015,-500.0,0.00018082,3]
[402276992,1768641080024,-500.0,0.00018082,3]
[402276994,1768641080033,-722.59,0.00018082,3]
[402276996,1768641080042,-1132.01,0.00018082,3]
[402276998,1768641080052,-1199.96,0.00018082,3]
[402277000,1768641080061,-1526.12,0.00018082,3]
[402277002,1768641080070,-500.0,0.00018082,3]
[402277004,1768641080079,-500.0,0.00018082,3]
[402277006,1768641080088,-500.0,0.00018082,3]
[402277008,1768641080097,-791.73,0.00018082,3]
[402277010,1768641080106,-1719.9,0.00018082,3]
[402277012,1768641080115,-1851.83,0.00018082,3]
[402277014,1768641080124,-3788.27,0.00018082,3]
[402277016,1768641080133,-1294.45,0.00018082,3]
[402277017,1768641080142,-512.3,0.00018082,3]
[402277018,1768641080151,-500.0,0.00018082,3]
[402277019,1768641080161,-500.0,0.00018082,3]
[402277020,1768641080170,-500.0,0.00018082,3]
[402277021,1768641080181,-2020.66,0.00018082,3]
[402277022,1768641080190,-1447.89,0.00018082,3]
[402277023,1768641080199,-500.0,0.00018082,3]
[402277024,1768641080209,-1709.81,0.00018082,3]
[402277026,1768641080218,-1140.43,0.00018082,3]
[402277028,1768641080227,-500.0,0.00018082,3]
[402277030,1768641080236,-730.33,0.00018082,3]
[402277032,1768641080245,-633.14,0.00018082,3]
[402277034,1768641080254,-1090.41,0.00018082,3]
[402277036,1768641080264,-500.0,0.00018082,3]
[402277038,1768641080274,-500.0,0.00018082,3]
[402277040,1768641080283,-614.82090661,0.00018082,3]
[402277042,1768641080292,-2132.97,0.00018082,3]
[402277044,1768641080302,-514.45,0.00018082,3]
[402277046,1768641080311,-1102.58,0.00018082,3]
[402277048,1768641080321,-1892.19,0.00018082,3]
[402277050,1768641080330,-1094.24,0.00018082,3]
[402277052,1768641080339,-931.54,0.00018082,3]
[402277054,1768641080349,-617.76,0.00018082,3]
[402277056,1768641080358,-784.75,0.00018082,3]
[402277058,1768641080367,-500.0,0.00018082,3]
[402277060,1768641080376,-500.0,0.00018082,3]
[402277062,1768641080386,-500.0,0.00018082,3]
[402277064,1768641080395,-500.0,0.00018082,3]
[402277066,1768641080406,-1670.51,0.00018082,3]
[402277068,1768641080416,-1717.32,0.00018082,3]
[402277070,1768641080425,-563.69,0.00018082,3]
[402277072,1768641080434,-500.0,0.00018082,3]
[402277074,1768641080444,-500.0,0.00018082,3]
[402277076,1768641080454,-500.0,0.00018082,3]
[402277078,1768641080463,-834.37,0.00018082,3]
[402277080,1768641080474,-500.0,0.00018082,3]
[402277082,1768641080484,-913.11,0.00018082,3]
[402277084,1768641080493,-500.0,0.00018082,3]
[402277086,1768641080503,-500.0,0.00018082,3]
[402277088,1768641080513,-939.73,0.00018082,3]
[402277091,1768641080523,-437.89239693,0.00018082,3]
[402277092,1768641080532,-1044.14,0.00018082,3]
[402277095,1768641080542,-722.95,0.00018082,3]
[402277097,1768641080551,-721.62,0.00018082,3]
[402277099,1768641080561,-500.0,0.00018082,3]
[402277101,1768641080570,-871.59,0.00018082,3]
[402277103,1768641080580,-500.0,0.00018082,3]
[402277105,1768641080590,-500.0,0.00018082,3]
[402277107,1768641080599,-568.79,0.00018082,3]
[402277109,1768641080608,-1451.63,0.00018082,3]
[402277111,1768641080618,-500.0,0.00018082,3]
[402277113,1768641080627,-1081.34,0.00018082,3]
[402277115,1768641080636,-518.59,0.00018082,3]
[402277117,1768641080646,-567.25,0.00018082,3]
[402277119,1768641080655,-1177.76,0.00018082,3]
[402277121,1768641080664,-1622.28,0.00018082,3]
[402277123,1768641080673,-700.32,0.00018082,3]
[402277125,1768641080683,-500.0,0.00018082,3]
[402277127,1768641080694,-500.0,0.00018082,3]
[402277129,1768641080704,-533.25,0.00018082,3]
[402277131,1768641080714,-1431.76,0.00018082,3]
[402277133,1768641080724,-1412.19,0.00018082,3]
[402277135,1768641080733,-500.0,0.00018082,3]
[402277138,1768641080743,-2815.19,0.00018082,3]
[402277140,1768641080753,-617.92,0.00018082,3]
[402277142,1768641080762,-501.51,0.00018082,3]
[402277144,1768641080772,-500.0,0.00018082,3]
[402277146,1768641080782,-2677.48,0.00018082,3]
[402277148,1768641080791,-581.87,0.00018082,3]
[402277150,1768641080801,-630.14,0.00018082,3]
[402277152,1768641080810,-1255.88,0.00018082,3]
[402277154,1768641080820,-1456.0,0.00018082,3]
[402277156,1768641080829,-552.83,0.00018082,3]
[402277158,1768641080839,-500.0,0.00018082,3]
[402277160,1768641080851,-500.0,0.00018082,3]
[402277162,1768641080861,-577.84,0.00018082,3]
[402277164,1768641080870,-638.34,0.00018082,3]
[402277166,1768641080880,-722.98,0.00018082,3]
[402277168,1768641080891,-1559.59,0.00018082,3]
[402277170,1768641080900,-500.0,0.00018082,3]
[402277172,1768641080909,-500.0,0.00018082,3]
[402277174,1768641080920,-596.89198935,0.00018082,3]
[402277176,1768641080929,-8441.37,0.00018082,3]
[402277178,1768641080939,-515.88315406,0.00018082,3]
[402277180,1768641080948,-500.0,0.00018082,3]
[402277182,1768641080958,-500.0,0.00018082,3]
[402277184,1768641080967,-500.0,0.00018082,3]
[402277186,1768641080978,-500.0,0.00018082,3]
[402277188,1768641080987,-921.27,0.00018082,3]
[402277190,1768641080997,-1326.69,0.00018082,3]
[402277192,1768641081007,-645.09,0.00018082,3]
[402277194,1768641081016,-953.59,0.00018082,3]
[402277196,1768641081026,-500.0,0.00018082,3]
[402277198,1768641081036,-500.0,0.00018082,3]
[402277200,1768641081047,-828.55,0.00018082,3]
[402277202,1768641081057,-500.0,0.00018082,3]
[402277204,1768641081066,-500.0,0.00018082,3]
[402277206,1768641081075,-500.0,0.00018082,3]
[402277208,1768641081086,-500.0,0.00018082,3]
[402277210,1768641081095,-980.47,0.00018082,3]
[402277212,1768641081105,-693.9,0.00018082,3]
[402277214,1768641081114,-1106.71,0.00018082,3]
[402277216,1768641081124,-500.0,0.00018082,3]
[402277218,1768641081134,-500.0,0.00018082,3]
[402277220,1768641081143,-500.0,0.00018082,3]
[402277222,1768641081153,-1330.27,0.00018082,3]
[402277224,1768641081162,-782.18,0.00018082,3]
[402277226,1768641081171,-3211.22,0.00018082,3]
[402277228,1768641081181,-500.0,0.00018082,3]
[402277230,1768641081191,-1075.34,0.00018082,3]
[402277232,1768641081200,-822.95,0.00018082,3]
[402277234,1768641081209,-500.0,0.00018082,3]
[402277236,1768641081219,-500.0,0.00018082,3]
[402277238,1768641081229,-1025.56,0.00018082,3]
[402277240,1768641081239,-1088.19,0.00018082,3]
[402277242,1768641081249,-784.27,0.00018082,3]
[402277245,1768641081259,-1239.92,0.00018082,3]
[402277247,1768641081268,-500.0,0.00018082,3]
[402277249,1768641081278,-1186.93,0.00018082,3]
[402277251,1768641081288,-500.0,0.00018082,3]
[402277253,1768641081297,-500.0,0.00018082,3]
[402277255,1768641081307,-500.0,0.00018082,3]
[402277257,1768641081317,-1439.17,0.00018082,3]
[402277259,1768641081327,-500.0,0.00018082,3]
[402277261,1768641081336,-2039.45,0.00018082,3]
[402277263,1768641081347,-692.94,0.00018082,3]
[402277264,1768641081356,-659.07,0.00018082,3]
[402277266,1768641081366,-1613.1,0.00018082,3]
[402277268,1768641081376,-2331.89,0.00018082,3]
[402277270,1768641081386,-500.0,0.00018082,3]
[402277272,1768641081395,-500.0,0.00018082,3]
[402277274,1768641081404,-1806.23,0.00018082,3]
[402277276,1768641081414,-1957.0,0.00018082,3]
[402277278,1768641081424,-500.0,0.00018082,3]
[402277280,1768641081434,-1112.08,0.00018082,3]
[402277282,1768641081443,-500.0,0.00018082,3]
[402277284,1768641081453,-619.77,0.00018082,3]
[402277286,1768641081463,-1659.97,0.00018082,3]
[402277288,1768641081472,-500.0,0.00018082,3]
[402277290,1768641081481,-500.0,0.00018082,3]
[402277292,1768641081490,-500.0,0.00018082,3]
[402277294,1768641081500,-1530.01,0.00018082,3]
[402277296,1768641081509,-1089.71,0.00018082,3]
[402277298,1768641081518,-508.15,0.00018082,3]
[402277300,1768641081528,-500.0,0.00018082,3]
[402277302,1768641081537,-500.0,0.00018082,3]
[402277304,1768641081547,-500.0,0.00018082,3]
[402277306,1768641081556,-1106.34,0.00018082,3]
[402277308,1768641081566,-674.15,0.00018082,3]
[402277310,1768641081576,-500.0,0.00018082,3]
[402277312,1768641081585,-500.0,0.00018082,3]
[402277314,1768641081596,-733.19,0.00018082,3]
[402277316,1768641081605,-849.02,0.00018082,3]
[402277318,1768641081615,-500.0,0.00018082,3]
[402277320,1768641081624,-500.0,0.00018082,3]
[402277322,1768641081634,-972.38,0.00018082,3]
[402277324,1768641081644,-500.0,0.00018082,3]
[402277326,1768641081654,-863.5,0.00018082,3]
[402277328,1768641081664,-1628.03,0.00018082,3]
[402277330,1768641081673,-1072.76,0.00018082,3]
[402277332,1768641081683,-1506.77,0.00018082,3]
[402277334,1768641081692,-920.91,0.00018082,3]
[402277336,1768641081702,-500.0,0.00018082,3]
[402277338,1768641081712,-500.0,0.00018082,3]
[402277340,1768641081722,-500.0,0.00018082,3]
[402277342,1768641081731,-693.24,0.00018082,3]
[402277344,1768641081740,-500.0,0.00018082,3]
[402277346,1768641081750,-641.28,0.00018082,3]
[402277348,1768641081761,-871.62,0.00018082,3]
[402277350,1768641081770,-500.0,0.00018082,3]
[402277352,1768641081780,-1287.57,0.00018082,3]
[402277354,1768641081791,-1429.84,0.00018082,3]
[402277356,1768641081800,-1670.99,0.00018082,3]
[402277358,1768641081809,-1293.83,0.00018082,3]
[402277360,1768641081819,-500.0,0.00018082,3]
[402277362,1768641081828,-500.0,0.00018082,3]
[402277364,1768641081838,-168.0,0.00018091,2]
[402277366,1768641081851,-667.06,0.00018095,3]
[402277368,1768641081861,-500.0,0.00018095,3]
[402277370,1768641081870,-500.0,0.00018095,3]
[402277372,1768641081879,-500.0,0.00018095,3]
[402277374,1768641081888,-500.0,0.00018095,3]
[402277376,1768641081898,-500.0,0.00018095,3]
[402277378,1768641081907,-500.0,0.00018095,3]
[402277379,1768641081917,-244.26437665,0.00018095,3]
[402277382,1768641081927,-500.0,0.00018095,3]
[402277383,1768641081936,-500.0,0.00018095,3]
[402277385,1768641081947,-1000.0,0.00018095,2]
[402277387,1768641081956,-521.93686507,0.00018095,3]
[402277389,1768641081966,-500.0,0.00018095,3]
[402277391,1768641081975,-694.6,0.00018095,3]
[402277393,1768641081985,-1108.81,0.00018095,3]
[402277396,1768641081994,-500.0,0.00018095,3]
[402277398,1768641082004,-500.0,0.00018095,3]
[402277400,1768641082014,-500.0,0.00018095,3]
[402277401,1768641082024,-500.0,0.00018095,3]
[402277403,1768641082034,-500.0,0.00018095,3]
[402277406,1768641082044,-500.0,0.00018095,3]
[402277407,1768641082054,-500.0,0.00018095,3]
[402277410,1768641082063,-694.92,0.00018095,3]
[402277412,1768641082074,-500.0,0.00018095,3]
[402277413,1768641082083,-588.41,0.00018095,3]
[402277415,1768641082094,-500.0,0.00018095,3]
[402277417,1768641082104,-817.66,0.00018095,3]
[402277419,1768641082115,-929.98,0.00018095,3]
[402277421,1768641082124,-980.65,0.00018095,3]
[402277423,1768641082134,-1054.42,0.00018095,3]
[402277425,1768641082144,-1098.82,0.00018095,3]
[402277427,1768641082153,-500.0,0.00018095,3]
[402277429,1768641082163,-500.0,0.00018095,3]
[402277431,1768641082172,-500.0,0.00018095,3]
[402277433,1768641082182,-500.0,0.00018095,3]
[402277435,1768641082192,-500.0,0.00018095,3]
[402277437,1768641082202,-611.38,0.00018095,3]
[402277439,1768641082212,-523.8,0.00018095,3]
[402277442,1768641082223,-500.0,0.00018095,3]
[402277444,1768641082232,-453.08603643,0.00018095,3]
[402277446,1768641082242,-500.0,0.00018095,3]
[402277448,1768641082252,-500.0,0.00018095,3]
[402277450,1768641082262,-500.0,0.00018095,3]
[402277452,1768641082272,-528.91250035,0.00018095,3]
[402277454,1768641082282,-530.24218336,0.00018095,3]
[402277455,1768641082292,-863.18,0.00018095,3]
[402277458,1768641082303,-1864.45,0.00018095,3]
[402277460,1768641082313,-875.55,0.00018095,3]
[402277462,1768641082323,-500.0,0.00018095,3]
[402277464,1768641082332,-500.0,0.00018095,3]
[402277466,1768641082342,-500.0,0.00018095,3]
[402277468,1768641082352,-500.0,0.00018095,3]
[402277470,1768641082361,-503.22,0.00018095,3]
[402277472,1768641082371,-500.0,0.00018095,3]
[402277474,1768641082381,-500.0,0.00018095,3]
[402277476,1768641082390,-500.0,0.00018095,3]
[402277478,1768641082400,-500.0,0.00018095,3]
[402277480,1768641082410,-500.0,0.00018095,3]
[402277482,1768641082419,-500.0,0.00018095,3]
[402277484,1768641082428,-500.0,0.00018095,3]
[402277486,1768641082437,-500.0,0.00018095,3]
[402277488,1768641082447,-500.0,0.00018095,3]
[402277490,1768641082456,-1777.27,0.00018095,3]
[402277492,1768641082466,-500.0,0.00018095,3]
[402277494,1768641082475,-508.96,0.00018095,3]
[402277496,1768641082486,-500.0,0.00018095,3]
[402277498,1768641082496,-772.16,0.00018095,3]
[402277524,1768641082733,-500.0,0.00018095,3]
[402277526,1768641082742,-500.0,0.00018095,3]
[402277528,1768641082751,-564.35,0.00018095,3]
[402277530,1768641082760,-1699.56,0.00018095,3]
[402277532,1768641082769,-643.39,0.00018095,3]
[402277534,1768641082778,-785.13,0.00018095,3]
[402277536,1768641082786,-974.97,0.00018095,3]
[402277538,1768641082795,-500.0,0.00018095,3]
[402277540,1768641082804,-500.0,0.00018095,3]
[402277542,1768641082813,-500.0,0.00018095,3]
[402277544,1768641082822,-964.42,0.00018095,3]
[402277546,1768641082831,-500.0,0.00018095,3]
[402277548,1768641082840,-716.02,0.00018095,3]
[402277550,1768641082852,-999.91,0.00018095,3]
[402277552,1768641082861,-500.0,0.00018095,3]
[402277554,1768641082870,-612.1,0.00018095,3]
[402277556,1768641082879,-530.71,0.00018095,3]
[402277557,1768641082889,-1003.52,0.00018095,3]
[402277559,1768641082898,-565.41,0.00018095,3]
[402277561,1768641082907,-500.0,0.00018095,3]
[402277563,1768641082916,-979.46,0.00018095,3]
[402277565,1768641082928,-500.0,0.00018095,3]
[402277567,1768641082938,-741.6,0.00018095,3]
[402277569,1768641082947,-904.31,0.00018095,3]
[402277571,1768641082957,-1000.0,0.00018095,2]
[402277573,1768641082966,-785.77,0.00018095,3]
[402277575,1768641082975,-500.0,0.00018095,3]
[402277577,1768641082984,-953.58,0.00018095,3]
[402277579,1768641082993,-500.0,0.00018095,3]
[402277581,1768641083003,-557.26,0.00018095,3]
[402277583,1768641083013,-510.56,0.00018095,3]
[402277585,1768641083023,-500.0,0.00018095,3]
[402277587,1768641083032,-500.0,0.00018095,3]
[402277589,1768641083043,-500.0,0.00018095,3]
[402277591,1768641083052,-500.0,0.00018095,3]
[402277593,1768641083062,-500.0,0.00018095,3]
[402277594,1768641083071,-1289.75,0.00018095,3]
[402277596,1768641083081,-314.31648412,0.00018095,3]
[402277637,1768641083519,-1189.61098215,0.00018095,3]
[402277689,1768641084091,-5000.0,0.00010872,2]
[402277692,1768641084102,-1141.26073926,0.00016712,3]
[402277694,1768641084118,-1141.26073926,0.00016986,3]
[402277696,1768641084130,-1141.26073926,0.0001726,3]
[402277697,1768641084140,-500.0,0.00017534,3]
[402277699,1768641084151,-1141.26073926,0.00017534,3]
[402277701,1768641084161,-683.46,0.00017534,3]
[402277703,1768641084171,-500.0,0.00017808,3]
[402277705,1768641084181,-1141.26073926,0.00017808,3]
[402277707,1768641084191,-683.46,0.00017808,3]
[402277709,1768641084201,-500.0,0.00018082,2]
[402277711,1768641084210,-500.0,0.00018082,3]
[402277713,1768641084220,-1141.26073926,0.00018082,3]
[402277715,1768641084230,-90.53253373,0.00018095,3]
[402277717,1768641084240,-535.73,0.00018095,3]
[402277719,1768641084249,-500.0,0.00018095,3]
[402277721,1768641084259,-500.0,0.00018095,3]
[402277723,1768641084270,-500.0,0.00018095,3]
[402277725,1768641084279,-528.43012967,0.00018095,3]
[402277726,1768641084288,-500.0,0.00018095,3]
[402277728,1768641084298,-500.0,0.00018095,3]
[402277730,1768641084308,-500.0,0.00018095,3]
[402277732,1768641084318,-500.0,0.00018095,3]
[402277734,1768641084328,-1572.67,0.00018095,3]
[402277736,1768641084337,-500.0,0.00018095,3]
[402277738,1768641084347,-500.0,0.00018095,3]
[402277740,1768641084356,-500.0,0.00018095,3]
[402277741,1768641084367,-500.0,0.00018095,3]
[402277743,1768641084376,-711.39,0.00018095,3]
[402277745,1768641084386,-500.0,0.00018095,3]
[402277747,1768641084396,-500.0,0.00018095,3]
[402277749,1768641084405,-500.0,0.00018095,3]
[402277751,1768641084415,-754.88,0.00018095,3]
[402277753,1768641084424,-567.66,0.00018095,3]
[402277754,1768641084434,-818.82,0.00018095,3]
[402277756,1768641084444,-153.74703891,0.00018095,3]
[402277758,1768641084454,-304.66478582,0.00018095,3]
[402277760,1768641084464,-500.0,0.00018095,3]
[402277762,1768641084473,-500.0,0.00018095,3]
[402277764,1768641084483,-500.0,0.00018095,3]
[402277766,1768641084492,-884.9,0.00018095,3]
[402277768,1768641084502,-677.43,0.00018095,3]
[402277770,1768641084511,-943.83,0.00018095,3]
[402277772,1768641084521,-500.0,0.00018095,3]
[402277773,1768641084531,-1038.9,0.00018095,3]
[402277775,1768641084541,-500.0,0.00018095,3]
[402277777,1768641084550,-500.0,0.00018095,3]
[402277779,1768641084560,-500.0,0.00018095,3]
[402277781,1768641084569,-500.0,0.00018095,3]
[402277783,1768641084579,-500.0,0.00018095,3]
[402277785,1768641084588,-913.08,0.00018095,3]
[402277787,1768641084599,-500.0,0.00018095,3]
[402277789,1768641084608,-500.0,0.00018095,3]
[402277791,1768641084618,-1121.7,0.00018095,3]
[402277793,1768641084632,-1342.39,0.00018095,3]
[402277795,1768641084642,-744.56,0.00018095,3]
[402277797,1768641084652,-193.75029484,0.00018095,3]
[402277864,1768641085354,-538.26,0.00016438,3]
[402277865,1768641085363,-538.26,0.00016712,3]
[402277867,1768641085372,-346.18776101,0.00016986,3]
[402277916,1768641086176,-500.0,0.00016438,3]
[402277918,1768641086186,-500.0,0.00016712,3]
[402277920,1768641086195,-192.07223899,0.00016986,3]
[402277922,1768641086204,-406.82668494,0.00016986,3]
[402278598,1768642231859,-614.35401849,9.639e-05,2]
[402278609,1768642238013,-4385.64598151,9.639e-05,2]
[402278610,1768642238022,-300.0,9.881e-05,2]
[402278611,1768642238032,-217.80741732,9.884e-05,2]
[402278612,1768642238042,-257.01275244,0.00011884,2]
[402278613,1768642238051,-250.0,0.00012736,2]
[402278614,1768642238061,-508.21606355,0.00013273,2]
[402278615,1768642238074,-1312.3259566,0.00013715,2]
[402278616,1768642238084,-296.21808756,0.00013884,2]
[402278617,1768642238093,-157.2205694,0.00014105,2]
[402278619,1768642238102,-1297.0927257,0.0001415,2]
[402278620,1768642238111,-500.0,0.00014151,2]
[402278621,1768642238120,-500.0,0.00014151,2]
[402278622,1768642238129,-567.1775226,0.00014368,2]
[402278623,1768642238138,-500.0,0.00014368,2]
[402278624,1768642238147,-500.0,0.00014368,2]
[402278626,1768642238159,-347.93910065,0.00014999,2]
[402278628,1768642238168,-489.42537568,0.00014999,2]
[402278630,1768642238178,-500.0,0.00014999,2]
[402278632,1768642238188,-172.34718431,0.00014999,2]
[402278634,1768642238197,-90000.0,0.00015,2]
[402278636,1768642238207,-3030.6386639,0.000151,2]
[402278638,1768642238217,-454.69370217,0.000152,2]
[402278640,1768642238226,-638.85005315,0.000154,30]
[402278642,1768642238236,-255.58319545,0.000154,2]
[402278644,1768642238245,-206.64782377,0.000154,2]
[402278646,1768642238255,-151.56456734,0.000154,2]
[402278648,1768642238265,-454.69370217,0.00015483,5]
[402278650,1768642238275,-454.69370217,0.00015766,9]
[402278652,1768642238285,-335.42342268,0.00015884,2]
[402278654,1768642238295,-255.58319545,0.00015971,9]
[402278656,1768642238305,-3000.0,0.00016,2]
[402278658,1768642238314,-454.69370217,0.00016048,13]
[402278660,1768642238323,-454.69370217,0.00016331,16]
[402278662,1768642238333,-3030.63866389,0.00016377,2]
[402278664,1768642238343,-343.01136002,0.00016427,2]
[402278666,1768642238352,-5000.0,0.00016437,2]
[402278668,1768642238361,-500.0,0.00016438,3]
[402278669,1768642238371,-644.00223298,0.00016438,3]
[402278670,1768642238380,-500.0,0.00016438,3]
[402278671,1768642238391,-500.0,0.00016438,3]
[402278672,1768642238401,-435.32524061,0.00016438,3]
[402278674,1768642238410,-500.0,0.00016438,3]
[402278676,1768642238419,-172.631544,0.00016438,3]
[402278678,1768642238428,-596.68,0.00016438,3]
[402278680,1768642238437,-500.0,0.00016438,3]
[402278682,1768642238446,-158.856128,0.00016438,3]
[402278683,1768642238455,-500.0,0.00016438,3]
[402278685,1768642238465,-500.0,0.00016438,3]
[402278687,1768642238475,-500.0,0.00016438,3]
[402278689,1768642238483,-500.0,0.00016438,3]
[402278691,1768642238493,-500.0,0.00016438,3]
[402278693,1768642238502,-500.0,0.00016438,3]
[402278695,1768642238511,-535.27896173,0.00016438,3]
[402278697,1768642238520,-500.0,0.00016438,3]
[402278699,1768642238529,-500.0,0.00016438,3]
[402278701,1768642238539,-500.0,0.00016438,3]
[402278703,1768642238548,-554.51009114,0.00016438,3]
[402278705,1768642238558,-1074.79,0.00016438,3]
[402278707,1768642238568,-500.0,0.00016438,3]
[402278709,1768642238578,-500.0,0.00016438,3]
[402278711,1768642238588,-500.0,0.00016438,3]
[402278713,1768642238597,-500.0,0.00016438,3]
[402278715,1768642238606,-500.0,0.00016438,3]
[402278717,1768642238616,-654.81,0.00016438,3]
[402278719,1768642238625,-635.08,0.00016438,3]
[402278721,1768642238635,-500.0,0.00016438,3]
[402278723,1768642238644,-500.0,0.00016438,3]
[402278725,1768642238653,-612.37,0.00016438,3]
[402278726,1768642238663,-500.0,0.00016438,3]
[402278727,1768642238673,-500.0,0.00016438,3]
[402278728,1768642238682,-794.65,0.00016438,3]
[402278729,1768642238691,-500.0,0.00016438,3]
[402278730,1768642238705,-500.0,0.00016438,3]
[402278731,1768642238715,-500.0,0.00016438,3]
[402278732,1768642238725,-500.0,0.00016438,3]
[402278733,1768642238734,-500.0,0.00016438,3]
[402278734,1768642238745,-172.6105479,0.00016438,3]
[402278735,1768642238755,-500.0,0.00016438,3]
[402278736,1768642238764,-1310.56,0.00016438,3]
[402278737,1768642238774,-1081.18,0.00016438,3]
[402278738,1768642238783,-555.88,0.00016438,3]
[402278739,1768642238792,-500.0,0.00016438,3]
[402278740,1768642238803,-500.0,0.00016438,3]
[402278741,1768642238813,-563.18,0.00016438,3]
[402278742,1768642238822,-500.0,0.00016438,3]
[402278743,1768642238831,-500.0,0.00016438,3]
[402278744,1768642238841,-593.17,0.00016438,3]